[Event "*** Titled Tuesday 3|2 Blitz"]
[Site "Chess.com"]
[Date "2017.06.06"]
[Round "7"]
[White "dinevmk"]
[Black "northridgehawk"]
[Result "0-1"]
[WhiteElo "2034"]
[BlackElo "2117"]
[TimeControl "180+2"]
[EndTime "15:23:14 PDT"]
[Termination "northridgehawk won on time"]

1. d4 {[%clk 0:03:02]} 1... d5 {[%clk 0:03:00.6]} 2. Nf3 {[%clk 0:03:02.7]} 2...
Nf6 {[%clk 0:03:01.1]} 3. g3 {[%clk 0:03:03.5]} 3... Bf5 {[%clk 0:03:00]} 4. Bg2
{[%clk 0:03:03.4]} 4... c6 {[%clk 0:03:01.2]} 5. O-O {[%clk 0:03:02.9]} 5... e6
{[%clk 0:03:02.5]} 6. c3 {[%clk 0:03:03.7]} 6... Be7 {[%clk 0:03:03.4]} 7. Nbd2
{[%clk 0:03:04.4]} 7... O-O {[%clk 0:03:04.4]} 8. Nh4 {[%clk 0:03:04.8]} 8...
Bg4 {[%clk 0:03:05]} 9. h3 {[%clk 0:03:04.9]} 9... Bh5 {[%clk 0:03:06.1]} 10. g4
{[%clk 0:03:05.6]} 10... Bg6 {[%clk 0:03:06.9]} 11. Nxg6 {[%clk 0:03:05.7]}
11... hxg6 {[%clk 0:03:07.5]} 12. e4 {[%clk 0:03:05.6]} 12... c5 {[%clk
0:03:07.5]} 13. e5 {[%clk 0:03:05.6]} 13... Nfd7 {[%clk 0:03:07.3]} 14. f4
{[%clk 0:03:05.2]} 14... Nc6 {[%clk 0:03:06.7]} 15. Nf3 {[%clk 0:03:05.4]} 15...
Rc8 {[%clk 0:03:06.2]} 16. Be3 {[%clk 0:03:03.8]} 16... Qb6 {[%clk 0:03:03.1]}
17. Rf2 {[%clk 0:03:03.3]} 17... cxd4 {[%clk 0:02:50.4]} 18. cxd4 {[%clk
0:03:02.7]} 18... Qa6 {[%clk 0:02:43.3]} 19. Re2 {[%clk 0:03:00.5]} 19... Nb6
{[%clk 0:02:40.9]} 20. b3 {[%clk 0:02:59.2]} 20... Nb4 {[%clk 0:02:38.2]} 21.
Bf1 {[%clk 0:02:57.8]} 21... Qd3 {[%clk 0:02:35.1]} 22. Qxd3 {[%clk 0:02:45.9]}
22... Nxd3 {[%clk 0:02:37]} 23. a3 {[%clk 0:02:41.9]} 23... Rc3 {[%clk
0:02:24.2]} 24. Nd2 {[%clk 0:02:39.9]} 24... a5 {[%clk 0:02:08]} 25. f5 {[%clk
0:02:20.7]} 25... a4 {[%clk 0:01:56]} 26. bxa4 {[%clk 0:02:14.7]} 26... Nxa4
{[%clk 0:01:51.6]} 27. Rg2 {[%clk 0:02:07.5]} 27... Nxe5 {[%clk 0:01:45.3]} 28.
Bf4 {[%clk 0:02:00.2]} 28... Nd3 {[%clk 0:01:30.7]} 29. Bg3 {[%clk 0:01:57.9]}
29... gxf5 {[%clk 0:01:26.3]} 30. gxf5 {[%clk 0:01:57.5]} 30... exf5 {[%clk
0:01:26.2]} 31. Rd1 {[%clk 0:01:45.3]} 31... f4 {[%clk 0:01:18.1]} 32. Nb1
{[%clk 0:01:40.8]} 32... Rb3 {[%clk 0:01:07.7]} 33. Bxd3 {[%clk 0:01:36.9]}
33... fxg3 {[%clk 0:01:02.3]} 34. Rxg3 {[%clk 0:01:37.4]} 34... Rb2 {[%clk
0:00:54.1]} 35. Kh1 {[%clk 0:01:30.6]} 35... Bf6 {[%clk 0:00:54.3]} 36. Bf1
{[%clk 0:01:21.3]} 36... Rc8 {[%clk 0:00:45.1]} 37. Bg2 {[%clk 0:01:20.3]} 37...
Nb6 {[%clk 0:00:45.6]} 38. a4 {[%clk 0:01:14.7]} 38... Rcc2 {[%clk 0:00:41.3]}
39. Na3 {[%clk 0:01:12.9]} 39... Rf2 {[%clk 0:00:39.6]} 40. a5 {[%clk
0:01:06.5]} 40... Nd7 {[%clk 0:00:38.5]} 41. Bxd5 {[%clk 0:01:02.6]} 41... Rh2+
{[%clk 0:00:29.7]} 42. Kg1 {[%clk 0:01:02.7]} 42... Rhd2 {[%clk 0:00:31.6]} 43.
Rd3 {[%clk 0:00:52.5]} 43... Rxd1+ {[%clk 0:00:28]} 44. Rxd1 {[%clk 0:00:52]}
44... Rb4 {[%clk 0:00:28.9]} 45. Kg2 {[%clk 0:00:47.6]} 45... Bxd4 {[%clk
0:00:25.7]} 46. Rxd4 {[%clk 0:00:43.6]} 46... Rxd4 {[%clk 0:00:24.8]} 47. Bxb7
{[%clk 0:00:43.8]} 47... Ra4 {[%clk 0:00:26.2]} 48. Nb5 {[%clk 0:00:23.7]} 48...
Rxa5 {[%clk 0:00:26]} 49. Nd4 {[%clk 0:00:23.4]} 49... Nf6 {[%clk 0:00:25.4]}
50. Nc6 {[%clk 0:00:20.4]} 50... Ra3 {[%clk 0:00:24.3]} 51. Ne7+ {[%clk
0:00:19.3]} 51... Kf8 {[%clk 0:00:24.4]} 52. Nf5 {[%clk 0:00:19]} 52... Nh5
{[%clk 0:00:25.3]} 53. Bc8 {[%clk 0:00:16.9]} 53... Nf4+ {[%clk 0:00:26.1]} 54.
Kf1 {[%clk 0:00:15.5]} 54... Nxh3 {[%clk 0:00:26.6]} 55. Nd6 {[%clk 0:00:13.9]}
55... Ng5 {[%clk 0:00:25.3]} 0-1

[Event "*** Titled Tuesday 3|2 Blitz"]
[Site "Chess.com"]
[Date "2017.06.06"]
[Round "7"]
[White "Journey_to_GrandMaster_YT"]
[Black "Rodalquilar"]
[Result "0-1"]
[WhiteElo "2342"]
[BlackElo "2544"]
[TimeControl "180+2"]
[EndTime "15:23:20 PDT"]
[Termination "Rodalquilar won by checkmate"]

1. d4 {[%clk 0:03:02]} 1... Nf6 {[%clk 0:03:00.5]} 2. Nf3 {[%clk 0:03:02.6]}
2... d5 {[%clk 0:03:00]} 3. c4 {[%clk 0:02:56.7]} 3... e6 {[%clk 0:03:00.8]} 4.
Nc3 {[%clk 0:02:57.5]} 4... Bb4 {[%clk 0:03:01.4]} 5. cxd5 {[%clk 0:02:58.2]}
5... exd5 {[%clk 0:03:03.3]} 6. Bg5 {[%clk 0:02:58.2]} 6... h6 {[%clk
0:03:03.9]} 7. Bxf6 {[%clk 0:02:55.8]} 7... Qxf6 {[%clk 0:03:05.8]} 8. Qb3
{[%clk 0:02:53.3]} 8... Bxc3+ {[%clk 0:03:05.6]} 9. bxc3 {[%clk 0:02:52.2]} 9...
c6 {[%clk 0:03:04.7]} 10. e3 {[%clk 0:02:52.8]} 10... O-O {[%clk 0:02:48.5]} 11.
c4 {[%clk 0:02:49.3]} 11... dxc4 {[%clk 0:02:37.3]} 12. Bxc4 {[%clk 0:02:49.8]}
12... Nd7 {[%clk 0:02:38.7]} 13. O-O {[%clk 0:02:43.5]} 13... Nb6 {[%clk
0:02:39.6]} 14. Be2 {[%clk 0:02:39.4]} 14... Be6 {[%clk 0:02:40.5]} 15. Qb2
{[%clk 0:02:30.4]} 15... Rab8 {[%clk 0:02:40.8]} 16. Ne5 {[%clk 0:02:26.3]}
16... Nd7 {[%clk 0:02:34.2]} 17. Nxd7 {[%clk 0:02:10.5]} 17... Bxd7 {[%clk
0:02:36.1]} 18. Bf3 {[%clk 0:02:07.1]} 18... Rfc8 {[%clk 0:01:58]} 19. Rab1
{[%clk 0:02:02.9]} 19... b6 {[%clk 0:01:55.7]} 20. Qa3 {[%clk 0:02:01.4]} 20...
Rc7 {[%clk 0:01:52.5]} 21. Rfc1 {[%clk 0:02:00.5]} 21... Rbc8 {[%clk 0:01:49.4]}
22. Rc3 {[%clk 0:01:42.4]} 22... c5 {[%clk 0:01:01.4]} 23. dxc5 {[%clk
0:01:42.5]} 23... Rxc5 {[%clk 0:01:02.5]} 24. Rxc5 {[%clk 0:01:40.9]} 24... Rxc5
{[%clk 0:01:04.4]} 25. Qxa7 {[%clk 0:01:32]} 25... Qb2 {[%clk 0:00:58.8]} 26.
Rd1 {[%clk 0:01:17.6]} 26... Be6 {[%clk 0:00:52.9]} 27. a4 {[%clk 0:00:57.1]}
27... g6 {[%clk 0:00:38.5]} 28. h3 {[%clk 0:00:54.7]} 28... Rc2 {[%clk
0:00:37.5]} 29. Qe7 {[%clk 0:00:39.5]} 29... Kg7 {[%clk 0:00:31.1]} 30. Rd8
{[%clk 0:00:24]} 30... Qa1+ {[%clk 0:00:29]} 31. Kh2 {[%clk 0:00:23.1]} 31...
Qe5+ {[%clk 0:00:29.8]} 32. Kg1 {[%clk 0:00:20.1]} 32... Qa1+ {[%clk 0:00:14.7]}
33. Bd1 {[%clk 0:00:20.5]} 33... Rc1 {[%clk 0:00:16.1]} 34. Qf8+ {[%clk
0:00:20.3]} 34... Kf6 {[%clk 0:00:17.5]} 35. Qh8+ {[%clk 0:00:15.5]} 35... Ke7
{[%clk 0:00:07.7]} 36. Qf8+ {[%clk 0:00:13]} 36... Kf6 {[%clk 0:00:08.9]} 37.
Qh8+ {[%clk 0:00:14.3]} 37... Ke7 {[%clk 0:00:10.1]} 38. Qxa1 {[%clk 0:00:12.8]}
38... Rxa1 {[%clk 0:00:10.6]} 39. Rd3 {[%clk 0:00:11.4]} 39... Bc4 {[%clk
0:00:10.6]} 40. Rd4 {[%clk 0:00:03.7]} 40... Bb3 {[%clk 0:00:11.6]} 41. Kh2
{[%clk 0:00:04.6]} 41... Bxd1 {[%clk 0:00:12.6]} 42. Rb4 {[%clk 0:00:04.7]}
42... Bxa4 {[%clk 0:00:13.7]} 43. Rxb6 {[%clk 0:00:05.7]} 43... Bd7 {[%clk
0:00:13.6]} 44. Kg3 {[%clk 0:00:06.2]} 44... h5 {[%clk 0:00:13.9]} 45. h4 {[%clk
0:00:07.2]} 45... Ra4 {[%clk 0:00:14.4]} 46. f3 {[%clk 0:00:07.4]} 46... Ra2
{[%clk 0:00:15.5]} 47. e4 {[%clk 0:00:07.6]} 47... Bc8 {[%clk 0:00:13.6]} 48.
Rb1 {[%clk 0:00:03.6]} 48... Ba6 {[%clk 0:00:13.6]} 49. Kh3 {[%clk 0:00:04.7]}
49... Kf6 {[%clk 0:00:13.8]} 50. g3 {[%clk 0:00:02.7]} 50... Be2 {[%clk
0:00:13.2]} 51. Rb3 {[%clk 0:00:02.3]} 51... Bf1# {[%clk 0:00:14.3]} 0-1

[Event "*** Titled Tuesday 3|2 Blitz"]
[Site "Chess.com"]
[Date "2017.06.06"]
[Round "7"]
[White "Pierrebl"]
[Black "cukus"]
[Result "1/2-1/2"]
[WhiteElo "2546"]
[BlackElo "2448"]
[TimeControl "180+2"]
[EndTime "15:23:21 PDT"]
[Termination "Game drawn by agreement"]

1. e4 {[%clk 0:03:01.1]} 1... c5 {[%clk 0:03:00.6]} 2. Nf3 {[%clk 0:03:01]} 2...
d6 {[%clk 0:03:01.9]} 3. d4 {[%clk 0:03:00.9]} 3... cxd4 {[%clk 0:03:03.8]} 4.
Nxd4 {[%clk 0:03:02]} 4... Nf6 {[%clk 0:03:04.6]} 5. Nc3 {[%clk 0:03:03]} 5...
a6 {[%clk 0:03:06]} 6. h3 {[%clk 0:03:03.6]} 6... e6 {[%clk 0:03:06.7]} 7. g4
{[%clk 0:03:04]} 7... Be7 {[%clk 0:03:08.1]} 8. g5 {[%clk 0:03:04.2]} 8... Nfd7
{[%clk 0:03:09]} 9. h4 {[%clk 0:03:05.3]} 9... b5 {[%clk 0:03:05.7]} 10. Be3
{[%clk 0:03:00.6]} 10... Bb7 {[%clk 0:03:06.8]} 11. a3 {[%clk 0:03:00.5]} 11...
Nc6 {[%clk 0:03:06.3]} 12. Qd2 {[%clk 0:02:58.8]} 12... Rc8 {[%clk 0:03:07.3]}
13. Nxc6 {[%clk 0:02:51]} 13... Rxc6 {[%clk 0:03:07]} 14. O-O-O {[%clk
0:02:34.4]} 14... O-O {[%clk 0:03:05.1]} 15. h5 {[%clk 0:02:34.8]} 15... Ne5
{[%clk 0:02:57.5]} 16. Be2 {[%clk 0:02:30.6]} 16... Nc4 {[%clk 0:02:49.4]} 17.
Bxc4 {[%clk 0:02:29.5]} 17... Rxc4 {[%clk 0:02:51.3]} 18. g6 {[%clk 0:02:21.4]}
18... Bf6 {[%clk 0:02:44.2]} 19. Qxd6 {[%clk 0:01:44.3]} 19... Qxd6 {[%clk
0:02:29.1]} 20. Rxd6 {[%clk 0:01:46.2]} 20... Bxc3 {[%clk 0:02:12.7]} 21. gxf7+
{[%clk 0:01:18.4]} 21... Rxf7 {[%clk 0:02:02.4]} 22. bxc3 {[%clk 0:01:19.5]}
22... Bxe4 {[%clk 0:01:59]} 23. Rg1 {[%clk 0:01:15.7]} 23... Rc6 {[%clk
0:01:33.2]} 24. Rd8+ {[%clk 0:01:04.8]} 24... Rf8 {[%clk 0:01:33]} 25. Rd7
{[%clk 0:00:40.8]} 25... Rf7 {[%clk 0:01:30.6]} 26. Rd8+ {[%clk 0:00:40.5]}
26... Rf8 {[%clk 0:01:31.8]} 27. Rxf8+ {[%clk 0:00:39.8]} 27... Kxf8 {[%clk
0:01:32.8]} 28. Bd4 {[%clk 0:00:38.9]} 28... g6 {[%clk 0:01:33.9]} 29. h6 {[%clk
0:00:37.5]} 29... Kf7 {[%clk 0:01:22.3]} 30. f3 {[%clk 0:00:36.2]} 30... Bf5
{[%clk 0:01:11.6]} 31. Kd2 {[%clk 0:00:32.6]} 31... Ke7 {[%clk 0:01:09.9]} 32.
Re1 {[%clk 0:00:27]} 32... Kd6 {[%clk 0:01:04.8]} 33. Re5 {[%clk 0:00:22.7]}
33... Rc4 {[%clk 0:01:05.8]} 34. f4 {[%clk 0:00:21.2]} 34... Kd7 {[%clk
0:00:52.3]} 35. Rc5 {[%clk 0:00:20.5]} 35... Rxc5 {[%clk 0:00:45.5]} 36. Bxc5
{[%clk 0:00:22.4]} 36... Kc6 {[%clk 0:00:42.2]} 37. Be7 {[%clk 0:00:18.8]} 37...
Kd5 {[%clk 0:00:43.4]} 38. Bd8 {[%clk 0:00:19.4]} 38... Ke4 {[%clk 0:00:44.4]}
39. Bg5 {[%clk 0:00:20.7]} 39... Kf3 {[%clk 0:00:45.4]} 40. c4 {[%clk 0:00:19]}
40... bxc4 {[%clk 0:00:40.8]} 41. c3 {[%clk 0:00:20.3]} 41... Bd3 {[%clk
0:00:39]} 42. a4 {[%clk 0:00:14.1]} 42... Bf5 {[%clk 0:00:27.5]} 43. a5 {[%clk
0:00:14.7]} 43... Be4 {[%clk 0:00:22.5]} 44. Bd8 {[%clk 0:00:10.9]} 44... Kxf4
{[%clk 0:00:21.7]} 45. Ke2 {[%clk 0:00:12.8]} 45... Bd3+ {[%clk 0:00:21.7]} 46.
Kf2 {[%clk 0:00:13.9]} 46... e5 {[%clk 0:00:23.2]} 47. Bc7 {[%clk 0:00:14.5]}
47... g5 {[%clk 0:00:24.2]} 48. Bd6 {[%clk 0:00:15.5]} 48... g4 {[%clk
0:00:25.6]} 49. Bc7 {[%clk 0:00:16.5]} 49... g3+ {[%clk 0:00:27]} 50. Kg1 {[%clk
0:00:16.9]} 50... Bg6 {[%clk 0:00:25.5]} 51. Bd6 {[%clk 0:00:17.7]} 51... Bh5
{[%clk 0:00:27]} 52. Bc7 {[%clk 0:00:18.8]} 52... Bf3 {[%clk 0:00:28.3]} 53. Bd6
{[%clk 0:00:19]} 53... Kf5 {[%clk 0:00:29.7]} 54. Bc7 {[%clk 0:00:19.3]} 54...
g2 {[%clk 0:00:31.1]} 55. Bb8 {[%clk 0:00:19.7]} 55... e4 {[%clk 0:00:29.3]} 56.
Ba7 {[%clk 0:00:20.4]} 56... Kf4 {[%clk 0:00:30.3]} 57. Kf2 {[%clk 0:00:21.6]}
57... g1=Q+ {[%clk 0:00:13]} 58. Kxg1 {[%clk 0:00:22.4]} 58... e3 {[%clk
0:00:14.9]} 59. Kf1 {[%clk 0:00:22.9]} 59... Ke4 {[%clk 0:00:16.3]} 60. Ke1
{[%clk 0:00:23.5]} 60... Kd3 {[%clk 0:00:17.7]} 61. Bd4 {[%clk 0:00:24.1]} 61...
Be4 {[%clk 0:00:18.8]} 62. Be5 {[%clk 0:00:24.6]} 62... Bf3 {[%clk 0:00:20.2]}
63. Bd4 {[%clk 0:00:25.6]} 63... e2 {[%clk 0:00:21.6]} 64. Be5 {[%clk
0:00:23.2]} 64... Bh5 {[%clk 0:00:22.7]} 65. Bf6 {[%clk 0:00:22.6]} 65... Kc2
{[%clk 0:00:23.3]} 66. Be5 {[%clk 0:00:23.8]} 1/2-1/2

[Event "*** Titled Tuesday 3|2 Blitz"]
[Site "Chess.com"]
[Date "2017.06.06"]
[Round "7"]
[White "wonderfultime"]
[Black "Alexander_Moskalenko"]
[Result "1-0"]
[WhiteElo "2660"]
[BlackElo "2674"]
[TimeControl "180+2"]
[EndTime "15:23:29 PDT"]
[Termination "wonderfultime won on time"]

1. d4 {[%clk 0:03:01.9]} 1... g6 {[%clk 0:03:01.1]} 2. g3 {[%clk 0:02:56.7]}
2... Bg7 {[%clk 0:03:01.7]} 3. Bg2 {[%clk 0:02:58.1]} 3... d5 {[%clk 0:03:01.3]}
4. Nf3 {[%clk 0:02:58.6]} 4... Nf6 {[%clk 0:03:01.7]} 5. O-O {[%clk 0:02:59.9]}
5... O-O {[%clk 0:03:02.4]} 6. c4 {[%clk 0:02:59.9]} 6... c6 {[%clk 0:03:02.8]}
7. Qb3 {[%clk 0:02:55.8]} 7... Qb6 {[%clk 0:03:01.7]} 8. Nc3 {[%clk 0:02:56.8]}
8... Bf5 {[%clk 0:02:53.6]} 9. c5 {[%clk 0:02:54]} 9... Qxb3 {[%clk 0:02:51.2]}
10. axb3 {[%clk 0:02:55.9]} 10... Na6 {[%clk 0:02:49.2]} 11. Bf4 {[%clk
0:02:48.1]} 11... Nh5 {[%clk 0:02:45.9]} 12. Bd2 {[%clk 0:02:35.9]} 12... Nc7
{[%clk 0:02:32.2]} 13. h3 {[%clk 0:02:29.5]} 13... Nf6 {[%clk 0:02:31.2]} 14.
Bf4 {[%clk 0:02:26.6]} 14... Ne6 {[%clk 0:02:24.1]} 15. Be5 {[%clk 0:02:27.8]}
15... Be4 {[%clk 0:02:19.7]} 16. Nxe4 {[%clk 0:02:15.1]} 16... Nxe4 {[%clk
0:02:16.5]} 17. Bxg7 {[%clk 0:02:13.5]} 17... Kxg7 {[%clk 0:02:18.4]} 18. b4
{[%clk 0:02:07.2]} 18... a6 {[%clk 0:02:16.4]} 19. e3 {[%clk 0:02:04.4]} 19...
N4g5 {[%clk 0:01:56.1]} 20. Ne5 {[%clk 0:02:04.5]} 20... f6 {[%clk 0:01:52.3]}
21. Nd3 {[%clk 0:02:05.7]} 21... Rae8 {[%clk 0:01:43.6]} 22. Nc1 {[%clk
0:01:56.1]} 22... Nd8 {[%clk 0:01:42]} 23. h4 {[%clk 0:01:55.2]} 23... Ngf7
{[%clk 0:01:42.2]} 24. Nb3 {[%clk 0:01:48.9]} 24... e5 {[%clk 0:01:44.1]} 25.
Bf3 {[%clk 0:01:33.9]} 25... Re7 {[%clk 0:01:41.4]} 26. Rfd1 {[%clk 0:01:31.5]}
26... e4 {[%clk 0:01:25.3]} 27. Be2 {[%clk 0:01:30.9]} 27... f5 {[%clk
0:01:27.2]} 28. Kf1 {[%clk 0:01:24.2]} 28... h6 {[%clk 0:01:27.4]} 29. Ke1
{[%clk 0:01:24.6]} 29... g5 {[%clk 0:01:27.5]} 30. hxg5 {[%clk 0:01:26.5]} 30...
hxg5 {[%clk 0:01:28.1]} 31. Kd2 {[%clk 0:01:28.4]} 31... Rh8 {[%clk 0:01:26.4]}
32. Rh1 {[%clk 0:01:29.4]} 32... Ree8 {[%clk 0:01:24.7]} 33. Na5 {[%clk
0:01:29.2]} 33... Rxh1 {[%clk 0:00:57.8]} 34. Rxh1 {[%clk 0:01:27.8]} 34... Rh8
{[%clk 0:00:59.6]} 35. Rxh8 {[%clk 0:00:32.6]} 35... Nxh8 {[%clk 0:00:56]} 36.
Nxb7 {[%clk 0:00:34.5]} 36... Nxb7 {[%clk 0:00:56]} 37. Bxa6 {[%clk 0:00:35.7]}
37... Nd8 {[%clk 0:00:57.4]} 38. b5 {[%clk 0:00:36.7]} 38... cxb5 {[%clk
0:00:56.4]} 39. Bxb5 {[%clk 0:00:38.6]} 39... Kf6 {[%clk 0:00:55.3]} 40. Bd7
{[%clk 0:00:38]} 40... Ng6 {[%clk 0:00:47.2]} 41. b4 {[%clk 0:00:38]} 41... Nf8
{[%clk 0:00:36.4]} 42. Bc8 {[%clk 0:00:38.8]} 42... Nc6 {[%clk 0:00:29.8]} 43.
b5 {[%clk 0:00:38.4]} 43... Na5 {[%clk 0:00:30.8]} 44. Kc3 {[%clk 0:00:32.1]}
44... Ne6 {[%clk 0:00:21.1]} 45. Kb4 {[%clk 0:00:21.8]} 45... Nc4 {[%clk
0:00:20.3]} 46. b6 {[%clk 0:00:21.2]} 46... Nd8 {[%clk 0:00:20.3]} 47. Kb5
{[%clk 0:00:18.7]} 47... Na3+ {[%clk 0:00:15.4]} 48. Ka6 {[%clk 0:00:18.9]}
48... f4 {[%clk 0:00:08.8]} 49. gxf4 {[%clk 0:00:19.3]} 49... gxf4 {[%clk
0:00:10.7]} 50. Bd7 {[%clk 0:00:15.8]} 50... fxe3 {[%clk 0:00:10.5]} 51. fxe3
{[%clk 0:00:17.7]} 51... Ke7 {[%clk 0:00:10.1]} 52. c6 {[%clk 0:00:16.4]} 52...
Kd6 {[%clk 0:00:02.7]} 53. b7 {[%clk 0:00:09]} 53... Kc7 {[%clk 0:00:02.4]} 54.
Ka7 {[%clk 0:00:07.4]} 54... Nb5+ {[%clk 0:00:03]} 55. Ka8 {[%clk 0:00:08.8]}
1-0

[Event "*** Titled Tuesday 3|2 Blitz"]
[Site "Chess.com"]
[Date "2017.06.06"]
[Round "7"]
[White "mwpchess"]
[Black "Spartakus1975"]
[Result "0-1"]
[WhiteElo "2471"]
[BlackElo "2596"]
[TimeControl "180+2"]
[EndTime "15:23:42 PDT"]
[Termination "Spartakus1975 won by resignation"]

1. e4 {[%clk 0:03:02]} 1... e6 {[%clk 0:02:53.7]} 2. d4 {[%clk 0:03:02.5]} 2...
d5 {[%clk 0:02:54.9]} 3. Nc3 {[%clk 0:03:03.4]} 3... Nf6 {[%clk 0:02:56.1]} 4.
e5 {[%clk 0:03:03.7]} 4... Nfd7 {[%clk 0:02:57.2]} 5. f4 {[%clk 0:03:04.3]} 5...
c5 {[%clk 0:02:58.4]} 6. Nf3 {[%clk 0:03:05.3]} 6... Nc6 {[%clk 0:02:59.5]} 7.
Be3 {[%clk 0:03:06]} 7... Be7 {[%clk 0:03:00.1]} 8. Qd2 {[%clk 0:03:06.4]} 8...
b6 {[%clk 0:03:00.1]} 9. Bb5 {[%clk 0:02:57.2]} 9... Bb7 {[%clk 0:02:52.1]} 10.
O-O {[%clk 0:02:56.6]} 10... O-O {[%clk 0:02:52.9]} 11. Nd1 {[%clk 0:02:50.5]}
11... cxd4 {[%clk 0:02:26.3]} 12. Nxd4 {[%clk 0:02:46.9]} 12... Rc8 {[%clk
0:02:19.2]} 13. Bxc6 {[%clk 0:02:37.5]} 13... Bxc6 {[%clk 0:02:19]} 14. Nf2
{[%clk 0:02:37.5]} 14... Nc5 {[%clk 0:02:18.6]} 15. c3 {[%clk 0:02:29.3]} 15...
a5 {[%clk 0:02:13]} 16. f5 {[%clk 0:02:18]} 16... exf5 {[%clk 0:01:34.6]} 17.
Nxf5 {[%clk 0:02:18]} 17... Re8 {[%clk 0:01:23.6]} 18. Ng4 {[%clk 0:01:56.2]}
18... Ne4 {[%clk 0:01:21.6]} 19. Qe2 {[%clk 0:01:50.5]} 19... Bg5 {[%clk
0:01:11.4]} 20. Bd4 {[%clk 0:01:45.7]} 20... h5 {[%clk 0:01:01.7]} 21. Nf2
{[%clk 0:00:44.9]} 21... Nd2 {[%clk 0:00:41.8]} 22. Rfd1 {[%clk 0:00:40.8]}
22... Qd7 {[%clk 0:00:32.4]} 23. Qd3 {[%clk 0:00:22.4]} 23... Ne4 {[%clk
0:00:26.2]} 24. Nxe4 {[%clk 0:00:20.7]} 24... dxe4 {[%clk 0:00:23]} 25. Qh3
{[%clk 0:00:21.2]} 25... g6 {[%clk 0:00:23.7]} 26. Nd6 {[%clk 0:00:21.6]} 26...
Qxh3 {[%clk 0:00:24]} 27. gxh3 {[%clk 0:00:22.7]} 27... b5 {[%clk 0:00:23.9]}
28. Nxc8 {[%clk 0:00:23]} 28... Rxc8 {[%clk 0:00:24.9]} 29. Re1 {[%clk
0:00:23.8]} 29... Bd5 {[%clk 0:00:23.6]} 30. Be3 {[%clk 0:00:24.6]} 30... Bh4
{[%clk 0:00:23.2]} 31. Bf2 {[%clk 0:00:25.5]} 31... Bg5 {[%clk 0:00:24]} 32. Be3
{[%clk 0:00:26.7]} 32... Be7 {[%clk 0:00:25]} 33. a3 {[%clk 0:00:23.9]} 33...
Bc4 {[%clk 0:00:23.7]} 34. Rad1 {[%clk 0:00:23.6]} 34... Bd3 {[%clk 0:00:24.2]}
35. Bf2 {[%clk 0:00:22.8]} 35... b4 {[%clk 0:00:24.7]} 36. axb4 {[%clk 0:00:23]}
36... axb4 {[%clk 0:00:25.9]} 37. Bd4 {[%clk 0:00:23.7]} 37... b3 {[%clk
0:00:23.6]} 38. Ra1 {[%clk 0:00:22.5]} 38... Bh4 {[%clk 0:00:24.3]} 39. Bf2
{[%clk 0:00:22.1]} 39... Bg5 {[%clk 0:00:25]} 40. Be3 {[%clk 0:00:22.4]} 40...
Be7 {[%clk 0:00:23]} 41. Ra7 {[%clk 0:00:21.2]} 41... Bc5 {[%clk 0:00:22]} 42.
Bxc5 {[%clk 0:00:21.5]} 42... Rxc5 {[%clk 0:00:22.8]} 43. e6 {[%clk 0:00:22.4]}
43... fxe6 {[%clk 0:00:23.7]} 44. Kf2 {[%clk 0:00:13.4]} 44... Rf5+ {[%clk
0:00:24.6]} 45. Ke3 {[%clk 0:00:14.1]} 45... e5 {[%clk 0:00:26.2]} 46. Rg1
{[%clk 0:00:09.9]} 46... Rf3+ {[%clk 0:00:27.2]} 47. Kd2 {[%clk 0:00:10.8]}
47... Rf2+ {[%clk 0:00:28.4]} 48. Ke1 {[%clk 0:00:11.3]} 48... e3 {[%clk
0:00:29.2]} 49. Ra1 {[%clk 0:00:03.2]} 49... Re2+ {[%clk 0:00:28.8]} 50. Kd1
{[%clk 0:00:03.7]} 50... Rd2+ {[%clk 0:00:29.7]} 51. Ke1 {[%clk 0:00:04.3]}
51... Re2+ {[%clk 0:00:29.9]} 52. Kd1 {[%clk 0:00:05]} 52... Rxb2 {[%clk
0:00:30.6]} 53. Ke1 {[%clk 0:00:05.4]} 53... Re2+ {[%clk 0:00:30.8]} 54. Kd1
{[%clk 0:00:06.2]} 54... Rd2+ {[%clk 0:00:31.9]} 55. Ke1 {[%clk 0:00:06.6]}
55... b2 {[%clk 0:00:33.1]} 56. Ra8+ {[%clk 0:00:07]} 56... Kg7 {[%clk
0:00:33.5]} 57. Rb8 {[%clk 0:00:07.8]} 57... Rc2 {[%clk 0:00:27.6]} 58. Rb7+
{[%clk 0:00:04.2]} 58... Kh6 {[%clk 0:00:27.9]} 0-1